[Event "Live Chess"]
[Site "Chess.com"]
[Date "2023.05.21"]
[Round "-"]
[White "AttackingSnowLeopard"]
[Black "Ian-Morley"]
[Result "1-0"]
[WhiteElo "2207"]
[BlackElo "1075"]
[TimeControl "300"]
[EndTime "2:45:14 PDT"]
[Termination "AttackingSnowLeopard won by resignation"]

1. e4 {[%clk 0:04:58]} 1... e5 {[%clk 0:04:57.1]} 2. Nf3 {[%clk 0:04:55.1]} 2...
d6 {[%clk 0:04:56.2]} 3. d4 {[%clk 0:04:53.3]} 3... Bg4 {[%clk 0:04:54.9]} 4.
dxe5 {[%clk 0:04:51.6]} 4... Bxf3 {[%clk 0:04:54.1]} 5. Qxf3 {[%clk 0:04:51.2]}
5... dxe5 {[%clk 0:04:53.5]} 6. Bc4 {[%clk 0:04:49.5]} 6... Qf6 {[%clk 0:04:52]}
7. Qb3 {[%clk 0:04:46.6]} 7... b6 {[%clk 0:04:46.6]} 8. Be3 {[%clk 0:04:43.9]}
8... c5 {[%clk 0:04:43.2]} 9. O-O {[%clk 0:04:41.9]} 9... Nc6 {[%clk 0:04:41.9]}
10. Nc3 {[%clk 0:04:41.5]} 10... Nd4 {[%clk 0:04:40.6]} 11. Qa4+ {[%clk
0:04:37.2]} 11... Qc6 {[%clk 0:04:37.1]} 12. Qxc6+ {[%clk 0:04:34.3]} 12... Nxc6
{[%clk 0:04:35.9]} 13. Bb5 {[%clk 0:04:34]} 13... Ne7 {[%clk 0:04:33]} 14. Nd5
{[%clk 0:04:32.1]} 14... Kd7 {[%clk 0:04:24.2]} 15. Nxe7 {[%clk 0:04:22.2]}
15... Bxe7 {[%clk 0:04:23.2]} 16. Rfd1+ {[%clk 0:04:21.6]} 16... Kc7 {[%clk
0:04:21.9]} 17. Rd5 {[%clk 0:04:21]} 17... Rad8 {[%clk 0:04:18.8]} 18. Bxc6
{[%clk 0:04:15.5]} 18... Kxc6 {[%clk 0:04:17.6]} 19. c4 {[%clk 0:04:15.4]} 19...
Rxd5 {[%clk 0:04:16.2]} 20. exd5+ {[%clk 0:04:13.3]} 20... Kd6 {[%clk
0:04:13.8]} 21. a4 {[%clk 0:04:08]} 21... Bf6 {[%clk 0:04:11.6]} 22. a5 {[%clk
0:04:06.3]} 22... e4 {[%clk 0:04:08.1]} 23. axb6 {[%clk 0:04:03.1]} 23... axb6
{[%clk 0:04:07]} 24. Ra6 {[%clk 0:04:02.3]} 24... Bxb2 {[%clk 0:04:04.8]} 25.
Rxb6+ {[%clk 0:04:01.3]} 25... Kd7 {[%clk 0:03:59.8]} 26. Rxb2 {[%clk
0:04:01.2]} 26... Re8 {[%clk 0:03:58.9]} 27. Bxc5 {[%clk 0:03:59.9]} 27... f5
{[%clk 0:03:57.6]} 28. g3 {[%clk 0:03:58.9]} 28... g5 {[%clk 0:03:56.4]} 29.
Rb7+ {[%clk 0:03:58.5]} 29... Kc8 {[%clk 0:03:52.5]} 30. Rxh7 {[%clk 0:03:58.4]}
30... f4 {[%clk 0:03:51.5]} 31. d6 {[%clk 0:03:57.4]} 31... e3 {[%clk
0:03:49.5]} 32. d7+ {[%clk 0:03:56.4]} 1-0

[Event "Live Chess"]
[Site "Chess.com"]
[Date "2023.05.21"]
[Round "-"]
[White "WilliamofOrange16th"]
[Black "apl_trainer"]
[Result "1-0"]
[WhiteElo "1860"]
[BlackElo "1750"]
[TimeControl "300"]
[EndTime "2:45:18 PDT"]
[Termination "WilliamofOrange16th won on time"]

1. e4 {[%clk 0:04:58.1]} 1... c5 {[%clk 0:04:58.6]} 2. b4 {[%clk 0:04:54.8]}
2... cxb4 {[%clk 0:04:56.2]} 3. a3 {[%clk 0:04:53.9]} 3... e5 {[%clk 0:04:53]}
4. Nf3 {[%clk 0:04:51.3]} 4... Nc6 {[%clk 0:04:47.2]} 5. Bb2 {[%clk 0:04:49.3]}
5... d5 {[%clk 0:04:44.8]} 6. exd5 {[%clk 0:04:46]} 6... Qxd5 {[%clk 0:04:42]}
7. Nxe5 {[%clk 0:04:19.9]} 7... Nxe5 {[%clk 0:04:36.2]} 8. Qe2 {[%clk
0:04:19.2]} 8... Nf6 {[%clk 0:03:27.2]} 9. Qxe5+ {[%clk 0:04:15.5]} 9... Qxe5+
{[%clk 0:03:22.3]} 10. Bxe5 {[%clk 0:04:15.4]} 10... Bd7 {[%clk 0:03:00.3]} 11.
axb4 {[%clk 0:04:12.2]} 11... Bxb4 {[%clk 0:02:57.8]} 12. c3 {[%clk 0:04:11.8]}
12... Be7 {[%clk 0:02:53]} 13. Bd4 {[%clk 0:03:38.1]} 13... O-O {[%clk
0:02:40.6]} 14. Bd3 {[%clk 0:03:30.6]} 14... Bc6 {[%clk 0:02:35.2]} 15. O-O
{[%clk 0:03:28.3]} 15... a6 {[%clk 0:02:28.7]} 16. Bf5 {[%clk 0:03:19.5]} 16...
Nd5 {[%clk 0:02:18.5]} 17. Na3 {[%clk 0:03:09.5]} 17... Nf4 {[%clk 0:02:14.7]}
18. Rfe1 {[%clk 0:03:06.8]} 18... Bxa3 {[%clk 0:02:07.7]} 19. Rxa3 {[%clk
0:03:06.7]} 19... Nxg2 {[%clk 0:02:06.4]} 20. Re7 {[%clk 0:03:00.6]} 20... Nh4
{[%clk 0:02:03.5]} 21. Bc2 {[%clk 0:02:53.2]} 21... Nf3+ {[%clk 0:01:49.4]} 22.
Kf1 {[%clk 0:02:51.6]} 22... Rfe8 {[%clk 0:01:46.9]} 23. Rxe8+ {[%clk
0:02:47.2]} 23... Rxe8 {[%clk 0:01:45.2]} 24. Be3 {[%clk 0:02:47.1]} 24... Nxh2+
{[%clk 0:01:38.5]} 25. Ke2 {[%clk 0:02:46.1]} 25... Ng4 {[%clk 0:01:35.2]} 26.
f3 {[%clk 0:02:35.5]} 26... Nxe3 {[%clk 0:01:27.9]} 27. dxe3 {[%clk 0:02:35.4]}
27... g6 {[%clk 0:01:25.8]} 28. e4 {[%clk 0:02:33.7]} 28... h5 {[%clk
0:01:21.5]} 29. Ra1 {[%clk 0:02:30.3]} 29... Rd8 {[%clk 0:01:19]} 30. Rg1 {[%clk
0:02:27.3]} 30... Kf8 {[%clk 0:01:15]} 31. f4 {[%clk 0:02:25.3]} 31... a5 {[%clk
0:01:08.2]} 32. Ke3 {[%clk 0:02:23.8]} 32... a4 {[%clk 0:01:05.3]} 33. c4 {[%clk
0:02:21.7]} 33... Ra8 {[%clk 0:00:56.1]} 34. f5 {[%clk 0:02:18.8]} 34... gxf5
{[%clk 0:00:51.3]} 35. exf5 {[%clk 0:02:18.7]} 35... a3 {[%clk 0:00:49.3]} 36.
f6 {[%clk 0:02:18.4]} 36... Ke8 {[%clk 0:00:40.2]} 37. Bb3 {[%clk 0:02:14.2]}
37... Kd7 {[%clk 0:00:36]} 38. Kf4 {[%clk 0:02:10.8]} 38... Kd6 {[%clk
0:00:29.7]} 39. Re1 {[%clk 0:02:07.7]} 39... h4 {[%clk 0:00:24]} 40. Ba2 {[%clk
0:02:06.1]} 40... h3 {[%clk 0:00:21.6]} 41. Kg3 {[%clk 0:02:05.7]} 41... Rh8
{[%clk 0:00:19]} 42. Kh2 {[%clk 0:02:04.9]} 42... Kc5 {[%clk 0:00:17]} 43. Re7
{[%clk 0:02:02.2]} 43... Rh7 {[%clk 0:00:14.5]} 44. Re3 {[%clk 0:01:54.3]} 44...
Kd4 {[%clk 0:00:12.5]} 45. Rxa3 {[%clk 0:01:50.8]} 45... Bg2 {[%clk 0:00:10.6]}
46. Rb3 {[%clk 0:01:46.1]} 46... Rh6 {[%clk 0:00:09]} 47. Rb6 {[%clk 0:01:41.8]}
47... Kc5 {[%clk 0:00:07.4]} 48. Rb5+ {[%clk 0:01:38.6]} 48... Kd4 {[%clk
0:00:06.3]} 49. Rf5 {[%clk 0:01:36.3]} 49... Ke4 {[%clk 0:00:05.1]} 50. Rf2
{[%clk 0:01:32.9]} 50... Ke3 {[%clk 0:00:04.2]} 51. Rf5 {[%clk 0:01:28.8]} 51...
Ke4 {[%clk 0:00:03.4]} 52. Rb5 {[%clk 0:01:14.8]} 52... Rxf6 {[%clk 0:00:02.2]}
53. Rxb7 {[%clk 0:01:13.6]} 53... Rf1 {[%clk 0:00:01.3]} 54. c5 {[%clk
0:01:02.8]} 1-0

[Event "Live Chess"]
[Site "Chess.com"]
[Date "2023.05.21"]
[Round "-"]
[White "RichardABates"]
[Black "Richardallis"]
[Result "1-0"]
[WhiteElo "2102"]
[BlackElo "1872"]
[TimeControl "300"]
[EndTime "2:45:23 PDT"]
[Termination "RichardABates won by resignation"]

1. d4 {[%clk 0:04:59]} 1... c5 {[%clk 0:04:57.5]} 2. d5 {[%clk 0:04:57.6]} 2...
d6 {[%clk 0:04:56.4]} 3. e4 {[%clk 0:04:56]} 3... e5 {[%clk 0:04:55.7]} 4. Nc3
{[%clk 0:04:50.7]} 4... a6 {[%clk 0:04:53.5]} 5. a4 {[%clk 0:04:49]} 5... Nf6
{[%clk 0:04:52.7]} 6. h4 {[%clk 0:04:40.3]} 6... Be7 {[%clk 0:04:51.2]} 7. g3
{[%clk 0:04:32.1]} 7... O-O {[%clk 0:04:48.4]} 8. Bh3 {[%clk 0:04:31.1]} 8...
Bxh3 {[%clk 0:04:46.7]} 9. Rxh3 {[%clk 0:04:29.3]} 9... Qc8 {[%clk 0:04:43]} 10.
Bg5 {[%clk 0:04:23.4]} 10... Nbd7 {[%clk 0:04:41.1]} 11. g4 {[%clk 0:04:20.9]}
11... h6 {[%clk 0:04:39.8]} 12. Be3 {[%clk 0:04:16.9]} 12... Nb6 {[%clk
0:04:29]} 13. g5 {[%clk 0:04:15.6]} 13... hxg5 {[%clk 0:04:24.4]} 14. hxg5
{[%clk 0:04:14.2]} 1-0

[Event "Live Chess"]
[Site "Chess.com"]
[Date "2023.05.21"]
[Round "-"]
[White "JanMur7"]
[Black "EdenHazard8"]
[Result "1-0"]
[WhiteElo "1968"]
[BlackElo "1968"]
[TimeControl "300"]
[EndTime "2:45:30 PDT"]
[Termination "JanMur7 won by resignation"]

1. e4 {[%clk 0:04:56.2]} 1... c6 {[%clk 0:04:59.2]} 2. d4 {[%clk 0:04:55]} 2...
d5 {[%clk 0:04:59.1]} 3. Nc3 {[%clk 0:04:54.5]} 3... dxe4 {[%clk 0:04:58.4]} 4.
Nxe4 {[%clk 0:04:54.4]} 4... Nf6 {[%clk 0:04:58.1]} 5. Nxf6+ {[%clk 0:04:53.7]}
5... exf6 {[%clk 0:04:58]} 6. Nf3 {[%clk 0:04:53]} 6... Bd6 {[%clk 0:04:57.5]}
7. Bd3 {[%clk 0:04:52.2]} 7... O-O {[%clk 0:04:57.2]} 8. O-O {[%clk 0:04:51.3]}
8... Re8 {[%clk 0:04:56.9]} 9. c3 {[%clk 0:04:50.4]} 9... Nd7 {[%clk 0:04:56.5]}
10. Qc2 {[%clk 0:04:49.7]} 10... Nf8 {[%clk 0:04:56.1]} 11. Bd2 {[%clk
0:04:47.7]} 11... Ng6 {[%clk 0:04:55.5]} 12. Rfe1 {[%clk 0:04:42.9]} 12... Be6
{[%clk 0:04:54.7]} 13. a4 {[%clk 0:04:28.9]} 13... Bc7 {[%clk 0:04:51.1]} 14. b4
{[%clk 0:04:25.1]} 14... Qd6 {[%clk 0:04:49.7]} 15. g3 {[%clk 0:04:19.3]} 15...
Bd5 {[%clk 0:04:47.5]} 16. Be4 {[%clk 0:04:03.3]} 16... f5 {[%clk 0:04:41.3]}
17. Bxd5 {[%clk 0:03:59.6]} 17... Qxd5 {[%clk 0:04:41.2]} 18. Qd3 {[%clk
0:03:55.3]} 18... f4 {[%clk 0:04:39.3]} 19. c4 {[%clk 0:03:50.2]} 19... Qh5
{[%clk 0:04:37.8]} 20. Rxe8+ {[%clk 0:03:42.2]} 20... Rxe8 {[%clk 0:04:36]} 21.
Re1 {[%clk 0:03:40.7]} 21... Rxe1+ {[%clk 0:04:34.3]} 22. Bxe1 {[%clk
0:03:16.8]} 22... fxg3 {[%clk 0:04:32.3]} 23. hxg3 {[%clk 0:03:16.7]} 23... h6
{[%clk 0:04:29.1]} 24. Qe4 {[%clk 0:03:09]} 24... f5 {[%clk 0:04:23.1]} 25. Qe8+
{[%clk 0:02:39.2]} 25... Kh7 {[%clk 0:04:22]} 26. Nh4 {[%clk 0:02:37.3]} 26...
Nxh4 {[%clk 0:04:19.6]} 27. Qxh5 {[%clk 0:02:35.6]} 1-0

[Event "Live Chess"]
[Site "Chess.com"]
[Date "2023.05.21"]
[Round "-"]
[White "Berdgross"]
[Black "KeithArkell"]
[Result "0-1"]
[WhiteElo "663"]
[BlackElo "2511"]
[TimeControl "300"]
[EndTime "2:45:38 PDT"]
[Termination "KeithArkell won by resignation"]

1. e4 {[%clk 0:04:56]} 1... d5 {[%clk 0:04:58.3]} 2. d3 {[%clk 0:04:55.4]} 2...
dxe4 {[%clk 0:04:57.1]} 3. dxe4 {[%clk 0:04:53.5]} 3... Qxd1+ {[%clk 0:04:56.1]}
4. Kxd1 {[%clk 0:04:52.2]} 4... Nc6 {[%clk 0:04:55.3]} 5. Bb5 {[%clk 0:04:49.2]}
5... Bd7 {[%clk 0:04:51.3]} 6. Nf3 {[%clk 0:04:47.3]} 6... O-O-O {[%clk
0:04:50.3]} 7. Bxc6 {[%clk 0:04:45.4]} 7... Bxc6+ {[%clk 0:04:49.2]} 8. Ke2
{[%clk 0:04:42.9]} 8... Bxe4 {[%clk 0:04:48]} 9. Rd1 {[%clk 0:04:38.3]} 9...
Bxf3+ {[%clk 0:04:43.7]} 10. gxf3 {[%clk 0:04:36.4]} 10... Rxd1 {[%clk
0:04:42.8]} 11. Kxd1 {[%clk 0:04:34.1]} 11... e6 {[%clk 0:04:42.5]} 12. Nc3
{[%clk 0:04:31.7]} 12... Bd6 {[%clk 0:04:41.1]} 13. Ne4 {[%clk 0:04:29.9]} 13...
Ne7 {[%clk 0:04:39.7]} 14. Ng5 {[%clk 0:04:28.2]} 14... Bxh2 {[%clk 0:04:32.6]}
15. Nxf7 {[%clk 0:04:25.3]} 15... Rf8 {[%clk 0:04:30.4]} 16. Ng5 {[%clk
0:04:21]} 16... Nd5 {[%clk 0:04:26.8]} 17. Nxe6 {[%clk 0:04:17.1]} 17... Rxf3
{[%clk 0:04:25]} 18. Be3 {[%clk 0:04:04.1]} 18... Nxe3+ {[%clk 0:04:22.2]} 19.
fxe3 {[%clk 0:04:02.4]} 19... Rf1+ {[%clk 0:04:21.2]} 20. Ke2 {[%clk 0:03:58.9]}
20... Rxa1 {[%clk 0:04:20.2]} 21. Nxg7 {[%clk 0:03:55.5]} 21... Rxa2 {[%clk
0:04:19.5]} 22. Kf3 {[%clk 0:03:52.8]} 22... Rxb2 {[%clk 0:04:18.3]} 23. Ne6
{[%clk 0:03:50.6]} 23... Rxc2 {[%clk 0:04:16.7]} 24. Nd4 {[%clk 0:03:49.1]}
24... Rc5 {[%clk 0:04:13.8]} 25. Ne6 {[%clk 0:03:47]} 25... Rf5+ {[%clk
0:04:12.2]} 26. Kg4 {[%clk 0:03:43.2]} 26... Re5 {[%clk 0:04:10.4]} 27. Nf4
{[%clk 0:03:40.1]} 27... Rxe3 {[%clk 0:04:09]} 28. Ng2 {[%clk 0:03:36.6]} 28...
Rg3+ {[%clk 0:04:07.4]} 29. Kh4 {[%clk 0:03:32.4]} 29... Rxg2 {[%clk 0:04:06.1]}
0-1

[Event "Live Chess"]
[Site "Chess.com"]
[Date "2023.05.21"]
[Round "-"]
[White "PrinceCharming_1"]
[Black "Doge_Dandolo"]
[Result "0-1"]
[WhiteElo "1619"]
[BlackElo "1860"]
[TimeControl "300"]
[EndTime "2:45:40 PDT"]
[Termination "Doge_Dandolo won by resignation"]

1. e4 {[%clk 0:04:59.1]} 1... c6 {[%clk 0:04:58.7]} 2. d4 {[%clk 0:04:58]} 2...
d5 {[%clk 0:04:58.1]} 3. e5 {[%clk 0:04:57.5]} 3... Bf5 {[%clk 0:04:56.5]} 4.
Be2 {[%clk 0:04:57.3]} 4... e6 {[%clk 0:04:54.5]} 5. h4 {[%clk 0:04:56.2]} 5...
h5 {[%clk 0:04:53]} 6. Nf3 {[%clk 0:04:55.6]} 6... c5 {[%clk 0:04:47.8]} 7. c3
{[%clk 0:04:55.1]} 7... Nd7 {[%clk 0:04:44.9]} 8. O-O {[%clk 0:04:53]} 8... Ne7
{[%clk 0:04:38.5]} 9. Bf4 {[%clk 0:04:49.6]} 9... Nc6 {[%clk 0:04:36.8]} 10. Bg3
{[%clk 0:04:48.2]} 10... Be7 {[%clk 0:04:33.7]} 11. Na3 {[%clk 0:04:46.3]} 11...
a6 {[%clk 0:04:31.8]} 12. Nc2 {[%clk 0:04:44.5]} 12... Bg4 {[%clk 0:04:29.2]}
13. Ne3 {[%clk 0:04:43.3]} 13... Bxf3 {[%clk 0:04:27.6]} 14. Bxf3 {[%clk
0:04:43.2]} 14... cxd4 {[%clk 0:04:25.8]} 15. cxd4 {[%clk 0:04:43.1]} 15... Bxh4
{[%clk 0:04:18.4]} 16. Rc1 {[%clk 0:04:40.7]} 16... Bxg3 {[%clk 0:04:12.9]} 17.
fxg3 {[%clk 0:04:39.7]} 17... h4 {[%clk 0:04:11.6]} 18. g4 {[%clk 0:04:38.4]}
18... h3 {[%clk 0:04:08]} 19. gxh3 {[%clk 0:04:33.1]} 19... Rxh3 {[%clk
0:04:04.7]} 20. Kg2 {[%clk 0:04:32.7]} 20... Qh4 {[%clk 0:04:00.5]} 0-1

[Event "Live Chess"]
[Site "Chess.com"]
[Date "2023.05.21"]
[Round "-"]
[White "Davidagye"]
[Black "f4nomore"]
[Result "1-0"]
[WhiteElo "1669"]
[BlackElo "1406"]
[TimeControl "300"]
[EndTime "2:45:41 PDT"]
[Termination "Davidagye won by checkmate"]

1. b4 {[%clk 0:04:57.6]} 1... g6 {[%clk 0:04:59.9]} 2. Bb2 {[%clk 0:04:56.5]}
2... Nf6 {[%clk 0:04:57.7]} 3. g4 {[%clk 0:04:56]} 3... Bg7 {[%clk 0:04:51.7]}
4. g5 {[%clk 0:04:55.3]} 4... Nh5 {[%clk 0:04:50.2]} 5. Bxg7 {[%clk 0:04:54.8]}
5... Nxg7 {[%clk 0:04:48.3]} 6. c4 {[%clk 0:04:54.7]} 6... e6 {[%clk 0:04:45]}
7. f4 {[%clk 0:04:52.5]} 7... O-O {[%clk 0:04:43.1]} 8. Nf3 {[%clk 0:04:49.9]}
8... d5 {[%clk 0:04:41.8]} 9. c5 {[%clk 0:04:48]} 9... Nc6 {[%clk 0:04:38.1]}
10. b5 {[%clk 0:04:43.3]} 10... Na5 {[%clk 0:04:36]} 11. h4 {[%clk 0:04:41.1]}
11... a6 {[%clk 0:04:27.2]} 12. a4 {[%clk 0:04:38.3]} 12... axb5 {[%clk
0:04:24.5]} 13. axb5 {[%clk 0:04:36.7]} 13... Bd7 {[%clk 0:04:22.7]} 14. e3
{[%clk 0:04:35]} 14... c6 {[%clk 0:04:19.5]} 15. b6 {[%clk 0:04:31.8]} 15... Nc4
{[%clk 0:04:12.1]} 16. Rxa8 {[%clk 0:04:27.7]} 16... Qxa8 {[%clk 0:04:09.7]} 17.
Bxc4 {[%clk 0:04:25.6]} 17... dxc4 {[%clk 0:04:06.6]} 18. Qc2 {[%clk 0:04:09]}
18... Qa6 {[%clk 0:04:01.5]} 19. Kf2 {[%clk 0:03:44.6]} 19... Nf5 {[%clk
0:03:54.3]} 20. Rc1 {[%clk 0:03:41.1]} 20... Ra8 {[%clk 0:03:43.4]} 21. Qxc4
{[%clk 0:03:28.8]} 21... Qxc4 {[%clk 0:03:38.5]} 22. Rxc4 {[%clk 0:03:23.8]}
22... Ne7 {[%clk 0:03:28.4]} 23. Nc3 {[%clk 0:03:20.9]} 23... Nd5 {[%clk
0:03:25.7]} 24. Nxd5 {[%clk 0:03:02.2]} 24... exd5 {[%clk 0:03:23.2]} 25. Rc3
{[%clk 0:02:58.1]} 25... Bf5 {[%clk 0:03:21]} 26. Nd4 {[%clk 0:02:48.7]} 26...
Be4 {[%clk 0:03:18.1]} 27. d3 {[%clk 0:02:44.5]} 27... Ra2+ {[%clk 0:03:13.5]}
28. Nc2 {[%clk 0:02:43.3]} 28... Bf5 {[%clk 0:03:06.7]} 29. Kf3 {[%clk 0:02:40]}
29... Ra1 {[%clk 0:03:02]} 30. e4 {[%clk 0:02:38.9]} 30... dxe4+ {[%clk
0:02:58.7]} 31. dxe4 {[%clk 0:02:37.6]} 31... Rf1+ {[%clk 0:02:56.4]} 32. Ke3
{[%clk 0:02:35.2]} 32... Bg4 {[%clk 0:02:50.7]} 33. Rd3 {[%clk 0:02:20.5]} 33...
Rf3+ {[%clk 0:02:40]} 34. Kd4 {[%clk 0:02:04.5]} 34... Rxf4 {[%clk 0:02:34.7]}
35. Ke5 {[%clk 0:01:58.1]} 35... Rf1 {[%clk 0:02:25.8]} 36. Rd8+ {[%clk
0:01:55.1]} 36... Kg7 {[%clk 0:02:24.7]} 37. Rb8 {[%clk 0:01:52.4]} 37... Rf2
{[%clk 0:02:17]} 38. Nd4 {[%clk 0:01:49.7]} 38... Rh2 {[%clk 0:02:10.1]} 39.
Rxb7 {[%clk 0:01:47.9]} 39... Rxh4 {[%clk 0:02:07.5]} 40. Nxc6 {[%clk
0:01:47.1]} 40... Be6 {[%clk 0:02:04.2]} 41. Nd8 {[%clk 0:01:45]} 41... Rh5
{[%clk 0:02:01]} 42. Nxe6+ {[%clk 0:01:43.9]} 42... Kg8 {[%clk 0:01:45.1]} 43.
Kf6 {[%clk 0:01:43.8]} 43... h6 {[%clk 0:01:36.9]} 44. Rb8+ {[%clk 0:01:42.2]}
44... Kh7 {[%clk 0:01:33.8]} 45. Nf8+ {[%clk 0:01:41.4]} 45... Kg8 {[%clk
0:01:31.9]} 46. Nxg6+ {[%clk 0:01:40.8]} 46... Kh7 {[%clk 0:01:30.6]} 47. Rh8#
{[%clk 0:01:39.5]} 1-0

[Event "Live Chess"]
[Site "Chess.com"]
[Date "2023.05.21"]
[Round "-"]
[White "omisoc"]
[Black "Brooms1989"]
[Result "1-0"]
[WhiteElo "2165"]
[BlackElo "1109"]
[TimeControl "300"]
[EndTime "2:45:47 PDT"]
[Termination "omisoc won by resignation"]

1. Nf3 {[%clk 0:04:54.6]} 1... Nc6 {[%clk 0:04:53.3]} 2. g3 {[%clk 0:04:47.4]}
2... e5 {[%clk 0:04:40.9]} 3. c4 {[%clk 0:04:44.5]} 3... Nf6 {[%clk 0:04:37.8]}
4. Nc3 {[%clk 0:04:42.3]} 4... Bc5 {[%clk 0:04:35.1]} 5. Bg2 {[%clk 0:04:39.2]}
5... d6 {[%clk 0:04:27.3]} 6. O-O {[%clk 0:04:37.1]} 6... O-O {[%clk 0:04:26.2]}
7. a3 {[%clk 0:04:33.1]} 7... a6 {[%clk 0:04:22.6]} 8. b4 {[%clk 0:04:29.1]}
8... Ba7 {[%clk 0:04:21.6]} 9. Bb2 {[%clk 0:04:28.1]} 9... Be6 {[%clk
0:04:09.5]} 10. d3 {[%clk 0:04:23.8]} 10... Ne7 {[%clk 0:04:02.4]} 11. a4 {[%clk
0:03:59.8]} 11... Ng6 {[%clk 0:03:49.3]} 12. b5 {[%clk 0:03:55.2]} 12... axb5
{[%clk 0:03:47.3]} 13. axb5 {[%clk 0:03:53.2]} 13... b6 {[%clk 0:03:45.9]} 14.
Ng5 {[%clk 0:03:44.2]} 14... h6 {[%clk 0:03:39]} 15. Nxe6 {[%clk 0:03:41.9]}
15... fxe6 {[%clk 0:03:38.9]} 16. Bxa8 {[%clk 0:03:37.2]} 16... Qxa8 {[%clk
0:03:33.6]} 17. Qa4 {[%clk 0:03:32.7]} 17... Qe8 {[%clk 0:02:57.5]} 18. Qxa7
{[%clk 0:03:29.9]} 18... Qf7 {[%clk 0:02:56.6]} 19. Qb7 {[%clk 0:03:21.2]} 19...
Ng4 {[%clk 0:02:46.5]} 20. Ra8 {[%clk 0:03:14.3]} 20... Kh7 {[%clk 0:02:36]} 21.
Rxf8 {[%clk 0:03:11.5]} 21... Qxf8 {[%clk 0:02:35.9]} 22. Qf3 {[%clk 0:03:06.7]}
22... Nf6 {[%clk 0:02:32.1]} 23. Ne4 {[%clk 0:02:57.7]} 23... Nxe4 {[%clk
0:02:24.1]} 24. Qxf8 {[%clk 0:02:53]} 24... Nxf8 {[%clk 0:02:24]} 25. dxe4
{[%clk 0:02:51.4]} 25... Kg6 {[%clk 0:02:20]} 26. Ra1 {[%clk 0:02:49.2]} 26...
Nd7 {[%clk 0:02:14]} 27. Ra7 {[%clk 0:02:47.2]} 27... Nc5 {[%clk 0:02:12.7]} 28.
f3 {[%clk 0:02:44.7]} 28... Kf6 {[%clk 0:02:06.2]} 29. Rxc7 {[%clk 0:02:42.3]}
29... g5 {[%clk 0:02:04.8]} 30. Rxc5 {[%clk 0:02:38.6]} 30... dxc5 {[%clk
0:02:02.9]} 31. f4 {[%clk 0:02:37.6]} 31... gxf4 {[%clk 0:01:58.1]} 32. gxf4
{[%clk 0:02:36.7]} 32... Ke7 {[%clk 0:01:55.8]} 33. Bxe5 {[%clk 0:02:35.4]}
33... Kd7 {[%clk 0:01:52.4]} 34. Kg2 {[%clk 0:02:34.7]} 34... h5 {[%clk
0:01:51.6]} 35. Kg3 {[%clk 0:02:34]} 35... Ke8 {[%clk 0:01:49.8]} 36. Kh4 {[%clk
0:02:33.9]} 36... Kf7 {[%clk 0:01:48.7]} 37. Kxh5 {[%clk 0:02:33.8]} 37... Ke8
{[%clk 0:01:47.8]} 38. Kg5 {[%clk 0:02:33.7]} 38... Kd7 {[%clk 0:01:47]} 39. Kf6
{[%clk 0:02:32.7]} 39... Ke8 {[%clk 0:01:44.5]} 40. h4 {[%clk 0:02:31.5]} 40...
Kf8 {[%clk 0:01:42.9]} 41. Bc7 {[%clk 0:02:30.4]} 41... Ke8 {[%clk 0:01:42]} 42.
Bxb6 {[%clk 0:02:30.1]} 42... Kd7 {[%clk 0:01:41.5]} 43. Bxc5 {[%clk 0:02:29.7]}
1-0

[Event "Live Chess"]
[Site "Chess.com"]
[Date "2023.05.21"]
[Round "-"]
[White "YrrriKharkiv"]
[Black "wadsy27"]
[Result "0-1"]
[WhiteElo "2071"]
[BlackElo "2570"]
[TimeControl "300"]
[EndTime "2:46:17 PDT"]
[Termination "wadsy27 won on time"]

1. d4 {[%clk 0:04:54.2]} 1... d5 {[%clk 0:04:54.7]} 2. c4 {[%clk 0:04:50]} 2...
c6 {[%clk 0:04:53]} 3. Nc3 {[%clk 0:04:49.1]} 3... Nf6 {[%clk 0:04:51.6]} 4. Nf3
{[%clk 0:04:46.3]} 4... dxc4 {[%clk 0:04:49.4]} 5. a4 {[%clk 0:04:44.8]} 5...
Bf5 {[%clk 0:04:45.5]} 6. e3 {[%clk 0:04:42.9]} 6... e6 {[%clk 0:04:44.3]} 7.
Bxc4 {[%clk 0:04:41.8]} 7... Bb4 {[%clk 0:04:36.7]} 8. O-O {[%clk 0:04:36.4]}
8... O-O {[%clk 0:04:33.8]} 9. Qe2 {[%clk 0:04:31.2]} 9... Bg6 {[%clk
0:04:25.6]} 10. Ne5 {[%clk 0:04:20.2]} 10... Nbd7 {[%clk 0:04:23.9]} 11. Nxg6
{[%clk 0:04:18.3]} 11... hxg6 {[%clk 0:04:22.3]} 12. e4 {[%clk 0:04:12.3]} 12...
e5 {[%clk 0:04:14]} 13. Rd1 {[%clk 0:04:02.4]} 13... exd4 {[%clk 0:04:05.2]} 14.
Rxd4 {[%clk 0:04:00.2]} 14... Bc5 {[%clk 0:04:00.4]} 15. Rd1 {[%clk 0:03:57.6]}
15... Qe7 {[%clk 0:03:58]} 16. Bg5 {[%clk 0:03:29.8]} 16... a5 {[%clk
0:03:41.6]} 17. Bh4 {[%clk 0:03:17.3]} 17... Ne5 {[%clk 0:03:33.1]} 18. Bb3
{[%clk 0:03:10]} 18... Rad8 {[%clk 0:03:29.8]} 19. Rxd8 {[%clk 0:03:08.1]} 19...
Rxd8 {[%clk 0:03:27.9]} 20. Rd1 {[%clk 0:03:06.8]} 20... Rxd1+ {[%clk
0:03:21.4]} 21. Qxd1 {[%clk 0:02:55.5]} 21... Qd7 {[%clk 0:03:19.4]} 22. Qxd7
{[%clk 0:02:47.1]} 22... Nfxd7 {[%clk 0:03:19.3]} 23. Bc2 {[%clk 0:02:25.7]}
23... Bd4 {[%clk 0:02:43.6]} 24. Nd1 {[%clk 0:02:14.2]} 24... Nc5 {[%clk
0:02:38.3]} 25. Be7 {[%clk 0:02:01.4]} 25... Ncd3 {[%clk 0:02:34.2]} 26. Ba3
{[%clk 0:01:45.4]} 26... b5 {[%clk 0:02:09.6]} 27. axb5 {[%clk 0:01:40.9]} 27...
cxb5 {[%clk 0:02:08.5]} 28. Bd6 {[%clk 0:01:05.9]} 28... Nxb2 {[%clk 0:02:01.7]}
29. Nxb2 {[%clk 0:01:02.2]} 29... Bxb2 {[%clk 0:02:01.6]} 30. Kf1 {[%clk
0:00:58.2]} 30... a4 {[%clk 0:01:57.1]} 31. Ke2 {[%clk 0:00:45.4]} 31... Nc4
{[%clk 0:01:50.9]} 32. Bb4 {[%clk 0:00:39.1]} 32... f6 {[%clk 0:01:40.3]} 33. f4
{[%clk 0:00:29]} 33... Kf7 {[%clk 0:01:37.5]} 34. Kd3 {[%clk 0:00:21.3]} 34...
g5 {[%clk 0:01:33.7]} 35. g3 {[%clk 0:00:19.7]} 35... gxf4 {[%clk 0:01:31]} 36.
gxf4 {[%clk 0:00:18.8]} 36... g5 {[%clk 0:01:26]} 37. fxg5 {[%clk 0:00:13.6]}
37... fxg5 {[%clk 0:01:24.9]} 38. Bxa4 {[%clk 0:00:07.8]} 38... Ne5+ {[%clk
0:01:19.3]} 39. Kc2 {[%clk 0:00:06.8]} 39... bxa4 {[%clk 0:01:18.1]} 40. Kxb2
{[%clk 0:00:05.4]} 40... Nd3+ {[%clk 0:01:17.2]} 41. Ka3 {[%clk 0:00:03.7]}
41... Nxb4 {[%clk 0:01:16.6]} 42. Kxb4 {[%clk 0:00:03.4]} 42... Ke6 {[%clk
0:01:16.2]} 43. Kxa4 {[%clk 0:00:03.1]} 43... Ke5 {[%clk 0:01:15.8]} 44. Kb3
{[%clk 0:00:02.8]} 44... Kxe4 {[%clk 0:01:15.5]} 45. Kc2 {[%clk 0:00:02.3]}
45... Kf3 {[%clk 0:01:15.2]} 46. Kd2 {[%clk 0:00:01.9]} 46... Kg2 {[%clk
0:01:14.1]} 47. Ke1 {[%clk 0:00:01.7]} 47... Kxh2 {[%clk 0:01:13.5]} 0-1